[Event "Early-Titled-Tuesday-Blitz-October-24-2023"]
[Site "Chess.com"]
[Date "2023.10.24"]
[Round "2"]
[White "bardiya_Daneshvar"]
[Black "Carow-Kann"]
[Result "1-0"]
[WhiteElo "2976"]
[BlackElo "2584"]
[TimeControl "180+1"]
[EndTime "8:17:55 PDT"]
[Termination "bardiya_Daneshvar won by checkmate"]

1. b3 {[%clk 0:03:00.9]} 1... c5 {[%clk 0:02:59.7]} 2. Bb2 {[%clk 0:02:59.5]}
2... d5 {[%clk 0:02:59.2]} 3. e3 {[%clk 0:02:58.1]} 3... Nf6 {[%clk 0:02:59.3]}
4. Nf3 {[%clk 0:02:57.7]} 4... e6 {[%clk 0:02:59.3]} 5. c4 {[%clk 0:02:56.5]}
5... dxc4 {[%clk 0:02:52.8]} 6. bxc4 {[%clk 0:02:53.1]} 6... Be7 {[%clk
0:02:52.3]} 7. d4 {[%clk 0:02:53.3]} 7... O-O {[%clk 0:02:49.6]} 8. Bd3 {[%clk
0:02:53.4]} 8... b6 {[%clk 0:02:43.4]} 9. O-O {[%clk 0:02:53.5]} 9... Bb7 {[%clk
0:02:43.4]} 10. Nbd2 {[%clk 0:02:54.1]} 10... Nbd7 {[%clk 0:02:40.1]} 11. Rc1
{[%clk 0:02:53.2]} 11... Rc8 {[%clk 0:02:40.1]} 12. Qe2 {[%clk 0:02:52.8]} 12...
Qc7 {[%clk 0:02:38.9]} 13. Nb3 {[%clk 0:02:48.8]} 13... Rfd8 {[%clk 0:02:33.9]}
14. h3 {[%clk 0:02:48.4]} 14... cxd4 {[%clk 0:02:22.1]} 15. exd4 {[%clk
0:02:47.3]} 15... Qf4 {[%clk 0:02:22.2]} 16. Qe3 {[%clk 0:02:43.8]} 16... Bd6
{[%clk 0:02:17.9]} 17. Qxf4 {[%clk 0:02:40.6]} 17... Bxf4 {[%clk 0:02:18.2]} 18.
Rc2 {[%clk 0:02:38.7]} 18... Bxf3 {[%clk 0:02:11.1]} 19. gxf3 {[%clk 0:02:39.6]}
19... Nc5 {[%clk 0:02:00.9]} 20. Be2 {[%clk 0:02:37.2]} 20... Na4 {[%clk
0:01:55.4]} 21. Ba1 {[%clk 0:02:35.8]} 21... Nd7 {[%clk 0:01:50.9]} 22. Rd1
{[%clk 0:02:30.5]} 22... e5 {[%clk 0:01:48.3]} 23. d5 {[%clk 0:02:26.9]} 23...
Nac5 {[%clk 0:01:47.2]} 24. Bf1 {[%clk 0:02:17]} 24... Na6 {[%clk 0:01:41.2]}
25. h4 {[%clk 0:02:02.4]} 25... f5 {[%clk 0:01:17.5]} 26. Bc3 {[%clk 0:01:48.2]}
26... Rf8 {[%clk 0:01:14.5]} 27. a4 {[%clk 0:01:32.1]} 27... Rf6 {[%clk
0:01:06.8]} 28. a5 {[%clk 0:01:27.8]} 28... Rg6+ {[%clk 0:00:55.4]} 29. Kh1
{[%clk 0:01:26.4]} 29... Rh6 {[%clk 0:00:54.7]} 30. axb6 {[%clk 0:01:26.5]}
30... Rxh4+ {[%clk 0:00:49.9]} 31. Kg1 {[%clk 0:01:24.9]} 31... axb6 {[%clk
0:00:47.4]} 32. Ra2 {[%clk 0:01:22]} 32... Nac5 {[%clk 0:00:45.3]} 33. Nxc5
{[%clk 0:01:21.7]} 33... Nxc5 {[%clk 0:00:46.2]} 34. Rda1 {[%clk 0:01:12.5]}
34... Rh6 {[%clk 0:00:34.9]} 35. Ra8 {[%clk 0:01:03.2]} 35... Rxa8 {[%clk
0:00:30.3]} 36. Rxa8+ {[%clk 0:01:04.1]} 36... Kf7 {[%clk 0:00:30.5]} 37. Ra7+
{[%clk 0:00:45.2]} 37... Kg8 {[%clk 0:00:21.5]} 38. Ra8+ {[%clk 0:00:10.3]}
38... Kf7 {[%clk 0:00:21.6]} 39. Rh8 {[%clk 0:00:09.7]} 39... Rg6+ {[%clk
0:00:21.3]} 40. Bg2 {[%clk 0:00:09.6]} 40... Nd3 {[%clk 0:00:17.9]} 41. Rxh7
{[%clk 0:00:05.7]} 41... e4 {[%clk 0:00:14.5]} 42. fxe4 {[%clk 0:00:05.1]} 42...
fxe4 {[%clk 0:00:15.4]} 43. Kf1 {[%clk 0:00:05.1]} 43... e3 {[%clk 0:00:14.1]}
44. fxe3 {[%clk 0:00:03.6]} 44... Bxe3 {[%clk 0:00:06.4]} 45. Be4 {[%clk
0:00:04.1]} 45... Rg3 {[%clk 0:00:05.9]} 46. Bxd3 {[%clk 0:00:03.8]} 46... Bc5
{[%clk 0:00:06.6]} 47. Ke2 {[%clk 0:00:04.1]} 47... Rg2+ {[%clk 0:00:06.4]} 48.
Kd1 {[%clk 0:00:04.6]} 48... Rg3 {[%clk 0:00:06.6]} 49. Kc2 {[%clk 0:00:04.4]}
49... Rg2+ {[%clk 0:00:07.3]} 50. Kd1 {[%clk 0:00:03.5]} 50... Rg3 {[%clk
0:00:07.6]} 51. Ke2 {[%clk 0:00:03.4]} 51... Rg2+ {[%clk 0:00:07.3]} 52. Kf3
{[%clk 0:00:04]} 52... Rf2+ {[%clk 0:00:07.7]} 53. Kg3 {[%clk 0:00:04]} 53...
Ra2 {[%clk 0:00:06.2]} 54. Rxg7+ {[%clk 0:00:04.4]} 54... Kf8 {[%clk 0:00:06.9]}
55. Bg6 {[%clk 0:00:03.4]} 55... Ra3 {[%clk 0:00:06.7]} 56. Rf7+ {[%clk
0:00:04]} 56... Kg8 {[%clk 0:00:07]} 57. Rf3 {[%clk 0:00:04.9]} 57... Bd6+
{[%clk 0:00:06.3]} 58. Kg4 {[%clk 0:00:05.4]} 58... Ra4 {[%clk 0:00:06.1]} 59.
Bf7+ {[%clk 0:00:05.6]} 59... Kh7 {[%clk 0:00:05.6]} 60. Rh3# {[%clk 0:00:05.4]}
1-0

[Event "Early-Titled-Tuesday-Blitz-October-24-2023"]
[Site "Chess.com"]
[Date "2023.10.24"]
[Round "2"]
[White "rezamahdavi2008"]
[Black "JiaHaoxiang"]
[Result "1/2-1/2"]
[WhiteElo "2880"]
[BlackElo "2587"]
[TimeControl "180+1"]
[EndTime "8:18:08 PDT"]
[Termination "Game drawn - insufficient material"]

1. Nf3 {[%clk 0:02:41.4]} 1... Nf6 {[%clk 0:02:55]} 2. c4 {[%clk 0:02:37.7]}
2... c6 {[%clk 0:02:54.4]} 3. g3 {[%clk 0:02:34.6]} 3... d5 {[%clk 0:02:54.5]}
4. Bg2 {[%clk 0:02:35.2]} 4... Bf5 {[%clk 0:02:52.4]} 5. Qb3 {[%clk 0:02:32]}
5... Qb6 {[%clk 0:02:50.3]} 6. d3 {[%clk 0:02:32.7]} 6... Nbd7 {[%clk
0:02:47.4]} 7. Qxb6 {[%clk 0:02:28.9]} 7... axb6 {[%clk 0:02:46.7]} 8. Nd4
{[%clk 0:02:29.6]} 8... Bg6 {[%clk 0:02:41]} 9. cxd5 {[%clk 0:02:30.3]} 9...
Nxd5 {[%clk 0:02:39]} 10. Bxd5 {[%clk 0:02:29.6]} 10... cxd5 {[%clk 0:02:39.2]}
11. Nb5 {[%clk 0:02:29.6]} 11... Rc8 {[%clk 0:02:38.5]} 12. N1c3 {[%clk
0:02:30.4]} 12... e6 {[%clk 0:02:37.9]} 13. Be3 {[%clk 0:02:31.2]} 13... Bb4
{[%clk 0:02:32.1]} 14. a3 {[%clk 0:02:19]} 14... Bxc3+ {[%clk 0:02:31.1]} 15.
bxc3 {[%clk 0:02:19.9]} 15... Ke7 {[%clk 0:02:29.5]} 16. Kd2 {[%clk 0:02:20.2]}
16... Ra8 {[%clk 0:02:23.4]} 17. Rhb1 {[%clk 0:02:19.3]} 17... Rhc8 {[%clk
0:02:22.3]} 18. Rb3 {[%clk 0:02:14.6]} 18... f6 {[%clk 0:02:20.3]} 19. Nd4
{[%clk 0:02:13.5]} 19... e5 {[%clk 0:02:17]} 20. Nc2 {[%clk 0:02:14.2]} 20...
Bf7 {[%clk 0:01:52.1]} 21. Bxb6 {[%clk 0:02:09.7]} 21... d4 {[%clk 0:01:51.7]}
22. c4 {[%clk 0:02:08.1]} 22... Rc6 {[%clk 0:01:47.2]} 23. Rab1 {[%clk
0:02:05.8]} 23... Ra6 {[%clk 0:01:47.1]} 24. Nb4 {[%clk 0:01:58.2]} 24... Rcxb6
{[%clk 0:01:43.8]} 25. Nxa6 {[%clk 0:01:56.2]} 25... Rxa6 {[%clk 0:01:43]} 26.
Rxb7 {[%clk 0:01:56.2]} 26... Rxa3 {[%clk 0:01:43.3]} 27. R1b3 {[%clk
0:01:49.6]} 27... Ra2+ {[%clk 0:01:42.1]} 28. Rb2 {[%clk 0:01:50.1]} 28... Ra6
{[%clk 0:01:40]} 29. Rc7 {[%clk 0:01:44]} 29... Kd6 {[%clk 0:01:38.3]} 30. Rbb7
{[%clk 0:01:22.2]} 30... Be6 {[%clk 0:01:35.2]} 31. Ra7 {[%clk 0:01:22.4]} 31...
Rb6 {[%clk 0:01:28]} 32. Rxd7+ {[%clk 0:01:15.1]} 32... Bxd7 {[%clk 0:01:19.7]}
33. c5+ {[%clk 0:01:14.3]} 33... Kxc5 {[%clk 0:01:20.1]} 34. Rxd7 {[%clk
0:01:15]} 34... Rb2+ {[%clk 0:01:20.3]} 35. Kd1 {[%clk 0:01:15.5]} 35... Rb1+
{[%clk 0:01:19.2]} 36. Kc2 {[%clk 0:01:15.8]} 36... Rf1 {[%clk 0:01:19.3]} 37.
f3 {[%clk 0:01:12.1]} 37... Rf2 {[%clk 0:01:13.6]} 38. Kd2 {[%clk 0:01:11.2]}
38... Rxh2 {[%clk 0:01:13.5]} 39. Rxg7 {[%clk 0:01:11.9]} 39... Kd6 {[%clk
0:01:14]} 40. g4 {[%clk 0:01:09.2]} 40... Ke6 {[%clk 0:01:11.2]} 41. Ke1 {[%clk
0:01:06.9]} 41... h5 {[%clk 0:01:10.5]} 42. Rh7 {[%clk 0:01:06.6]} 42... h4
{[%clk 0:01:10.6]} 43. Kf1 {[%clk 0:01:00.4]} 43... h3 {[%clk 0:01:06.9]} 44.
Ke1 {[%clk 0:00:55]} 44... Rh1+ {[%clk 0:01:05.3]} 45. Kf2 {[%clk 0:00:34.2]}
45... h2 {[%clk 0:01:04.3]} 46. Rh8 {[%clk 0:00:32.4]} 46... Kf7 {[%clk
0:01:03.8]} 47. Rh7+ {[%clk 0:00:28.8]} 47... Kg6 {[%clk 0:01:04]} 48. Rh5
{[%clk 0:00:28.8]} 48... Kg7 {[%clk 0:01:02.6]} 49. Rh3 {[%clk 0:00:28]} 49...
Kf7 {[%clk 0:00:54.5]} 50. Rh4 {[%clk 0:00:26.5]} 50... Ke6 {[%clk 0:00:54.6]}
51. Rh6 {[%clk 0:00:26.6]} 51... Ke7 {[%clk 0:00:52.4]} 52. Rh7+ {[%clk
0:00:26.4]} 52... Kd6 {[%clk 0:00:52.6]} 53. Rh8 {[%clk 0:00:26]} 53... Kc5
{[%clk 0:00:51.7]} 54. Rh6 {[%clk 0:00:24.3]} 54... Kb4 {[%clk 0:00:49.2]} 55.
Kg3 {[%clk 0:00:24.7]} 55... Re1 {[%clk 0:00:48.2]} 56. Rxh2 {[%clk 0:00:13.1]}
56... Kc3 {[%clk 0:00:48.1]} 57. f4 {[%clk 0:00:13]} 57... Rg1+ {[%clk 0:00:38]}
58. Rg2 {[%clk 0:00:05.7]} 58... exf4+ {[%clk 0:00:31.4]} 59. Kf3 {[%clk
0:00:04.5]} 59... Rxg2 {[%clk 0:00:19.8]} 60. Kxg2 {[%clk 0:00:05.4]} 60... Kd2
{[%clk 0:00:20.5]} 61. Kf3 {[%clk 0:00:05.1]} 61... Ke1 {[%clk 0:00:21.2]} 62.
Kxf4 {[%clk 0:00:05.4]} 62... Kxe2 {[%clk 0:00:21.8]} 63. Ke4 {[%clk 0:00:05.1]}
63... Kf2 {[%clk 0:00:21.5]} 64. Kxd4 {[%clk 0:00:03.3]} 64... Kg3 {[%clk
0:00:22.1]} 65. Ke3 {[%clk 0:00:03.2]} 65... Kxg4 {[%clk 0:00:22.7]} 66. d4
{[%clk 0:00:03.1]} 66... Kf5 {[%clk 0:00:22.8]} 67. Kf3 {[%clk 0:00:03.8]} 67...
Ke6 {[%clk 0:00:23.3]} 68. Ke4 {[%clk 0:00:04.7]} 68... f5+ {[%clk 0:00:23.5]}
69. Kf4 {[%clk 0:00:05.4]} 69... Kd5 {[%clk 0:00:24.3]} 70. Kxf5 {[%clk
0:00:06.3]} 70... Kxd4 {[%clk 0:00:25.2]} 1/2-1/2

[Event "Early-Titled-Tuesday-Blitz-October-24-2023"]
[Site "Chess.com"]
[Date "2023.10.24"]
[Round "2"]
[White "CarlosjPineror"]
[Black "DarZay"]
[Result "1/2-1/2"]
[WhiteElo "2472"]
[BlackElo "2238"]
[TimeControl "180+1"]
[EndTime "8:18:11 PDT"]
[Termination "Game drawn by stalemate"]

1. e4 {[%clk 0:03:00.9]} 1... c5 {[%clk 0:02:58.2]} 2. Nf3 {[%clk 0:02:59.4]}
2... Nc6 {[%clk 0:02:57.2]} 3. d4 {[%clk 0:02:58.6]} 3... cxd4 {[%clk
0:02:49.4]} 4. Nxd4 {[%clk 0:02:59.5]} 4... Nxd4 {[%clk 0:02:48.6]} 5. Qxd4
{[%clk 0:02:59.2]} 5... Nf6 {[%clk 0:02:48.9]} 6. e5 {[%clk 0:02:56.5]} 6... Ng8
{[%clk 0:02:43.6]} 7. Nc3 {[%clk 0:02:55.3]} 7... d6 {[%clk 0:02:43.6]} 8. exd6
{[%clk 0:02:54.8]} 8... exd6 {[%clk 0:02:42.9]} 9. Bf4 {[%clk 0:02:54.2]} 9...
Be6 {[%clk 0:02:42.2]} 10. O-O-O {[%clk 0:02:53.7]} 10... Nf6 {[%clk 0:02:37.9]}
11. Bb5+ {[%clk 0:02:52.9]} 11... Nd7 {[%clk 0:02:36.8]} 12. Bxd6 {[%clk
0:02:51.4]} 12... Bxd6 {[%clk 0:02:36.2]} 13. Qxd6 {[%clk 0:02:52.3]} 13... Qg5+
{[%clk 0:02:35.9]} 14. Kb1 {[%clk 0:02:50.1]} 14... O-O-O {[%clk 0:02:33.4]} 15.
f4 {[%clk 0:02:39.5]} 15... Qf6 {[%clk 0:02:28.3]} 16. g3 {[%clk 0:02:12.8]}
16... Nb6 {[%clk 0:02:22.1]} 17. Qc5+ {[%clk 0:01:33.1]} 17... Kb8 {[%clk
0:02:21.1]} 18. a4 {[%clk 0:01:28.1]} 18... Rc8 {[%clk 0:02:14.1]} 19. Qd4
{[%clk 0:01:25.7]} 19... Qxd4 {[%clk 0:02:12.4]} 20. Rxd4 {[%clk 0:01:26.6]}
20... Rhd8 {[%clk 0:02:11.5]} 21. Rhd1 {[%clk 0:01:24.7]} 21... Rxd4 {[%clk
0:02:11.4]} 22. Rxd4 {[%clk 0:01:23.8]} 22... a6 {[%clk 0:02:11.2]} 23. Bd3
{[%clk 0:01:21.4]} 23... Kc7 {[%clk 0:02:07.4]} 24. Be4 {[%clk 0:01:14.1]} 24...
f5 {[%clk 0:01:56.3]} 25. Bf3 {[%clk 0:01:00.8]} 25... Re8 {[%clk 0:01:54.3]}
26. b3 {[%clk 0:00:40.2]} 26... Rd8 {[%clk 0:01:51.9]} 27. Rxd8 {[%clk
0:00:38.1]} 27... Kxd8 {[%clk 0:01:50.4]} 28. Kc1 {[%clk 0:00:29.8]} 28... Kc7
{[%clk 0:01:49.5]} 29. Kd2 {[%clk 0:00:19.7]} 29... Nd7 {[%clk 0:01:49.3]} 30.
Ke3 {[%clk 0:00:18.4]} 30... b6 {[%clk 0:01:46.3]} 31. Kd4 {[%clk 0:00:19.3]}
31... Kd6 {[%clk 0:01:46.4]} 32. b4 {[%clk 0:00:17.7]} 32... a5 {[%clk
0:01:23.6]} 33. bxa5 {[%clk 0:00:17.5]} 33... bxa5 {[%clk 0:01:23.8]} 34. Be2
{[%clk 0:00:15]} 34... Nc5 {[%clk 0:01:20.3]} 35. Nb5+ {[%clk 0:00:13.8]} 35...
Kc6 {[%clk 0:01:20.2]} 36. Nc3 {[%clk 0:00:13]} 36... Kd6 {[%clk 0:01:06.1]} 37.
Bb5 {[%clk 0:00:11.9]} 37... Bc8 {[%clk 0:00:55.5]} 38. Nd5 {[%clk 0:00:11]}
38... Ne6+ {[%clk 0:00:49.6]} 39. Kc4 {[%clk 0:00:09.9]} 39... Bb7 {[%clk
0:00:48.8]} 40. Ne3 {[%clk 0:00:10.1]} 40... Be4 {[%clk 0:00:46.7]} 41. Kc3
{[%clk 0:00:09]} 41... Kc5 {[%clk 0:00:45.4]} 42. Nc4 {[%clk 0:00:08.9]} 42...
Nd4 {[%clk 0:00:43.6]} 43. Nxa5 {[%clk 0:00:09.3]} 43... Nxb5+ {[%clk
0:00:41.9]} 44. axb5 {[%clk 0:00:10.2]} 44... Kxb5 {[%clk 0:00:42.2]} 45. Nb3
{[%clk 0:00:10.8]} 45... Kc6 {[%clk 0:00:30.7]} 46. Nd2 {[%clk 0:00:08.9]} 46...
Bg2 {[%clk 0:00:17.1]} 47. Kd4 {[%clk 0:00:08.8]} 47... g6 {[%clk 0:00:15.3]}
48. c4 {[%clk 0:00:09.7]} 48... Kd6 {[%clk 0:00:14.1]} 49. c5+ {[%clk 0:00:10]}
49... Ke6 {[%clk 0:00:14.6]} 50. Nc4 {[%clk 0:00:10.9]} 50... Bd5 {[%clk
0:00:13.7]} 51. Ne5 {[%clk 0:00:11.8]} 51... Be4 {[%clk 0:00:12.1]} 52. h4
{[%clk 0:00:09.7]} 52... Ke7 {[%clk 0:00:10.1]} 53. c6 {[%clk 0:00:09.2]} 53...
Kd6 {[%clk 0:00:09.9]} 54. Nf7+ {[%clk 0:00:06.6]} 54... Kxc6 {[%clk 0:00:09.2]}
55. Ng5 {[%clk 0:00:07.5]} 55... Kd6 {[%clk 0:00:05.8]} 56. Nxe4+ {[%clk
0:00:07.3]} 56... fxe4 {[%clk 0:00:05]} 57. Kxe4 {[%clk 0:00:08.2]} 57... Ke6
{[%clk 0:00:05.5]} 58. g4 {[%clk 0:00:08.8]} 58... h6 {[%clk 0:00:03.7]} 59. g5
{[%clk 0:00:08.3]} 59... h5 {[%clk 0:00:02.6]} 60. f5+ {[%clk 0:00:08.1]} 60...
gxf5+ {[%clk 0:00:02.7]} 61. Kf4 {[%clk 0:00:09]} 61... Kf7 {[%clk 0:00:02.2]}
62. Kxf5 {[%clk 0:00:09.9]} 62... Kg7 {[%clk 0:00:02.6]} 63. g6 {[%clk
0:00:10.8]} 63... Kh6 {[%clk 0:00:02.2]} 64. Kf6 {[%clk 0:00:11.2]} 1/2-1/2

[Event "Early-Titled-Tuesday-Blitz-October-24-2023"]
[Site "Chess.com"]
[Date "2023.10.24"]
[Round "2"]
[White "Chessy222222"]
[Black "koncheto"]
[Result "1/2-1/2"]
[WhiteElo "2336"]
[BlackElo "2529"]
[TimeControl "180+1"]
[EndTime "8:18:12 PDT"]
[Termination "Game drawn by repetition"]

1. e4 {[%clk 0:02:58.4]} 1... e5 {[%clk 0:03:00]} 2. Nf3 {[%clk 0:02:57.2]} 2...
Nf6 {[%clk 0:02:59.7]} 3. Nc3 {[%clk 0:02:54.3]} 3... Nc6 {[%clk 0:02:59.7]} 4.
d4 {[%clk 0:02:52.4]} 4... exd4 {[%clk 0:02:59.9]} 5. Nxd4 {[%clk 0:02:53.2]}
5... Bb4 {[%clk 0:03:00.5]} 6. Nxc6 {[%clk 0:02:52.4]} 6... bxc6 {[%clk
0:03:01.4]} 7. Bd3 {[%clk 0:02:36.3]} 7... d5 {[%clk 0:02:59.4]} 8. exd5 {[%clk
0:02:35.2]} 8... cxd5 {[%clk 0:03:00.3]} 9. O-O {[%clk 0:02:35.1]} 9... O-O
{[%clk 0:02:59]} 10. Bg5 {[%clk 0:02:33.4]} 10... c6 {[%clk 0:02:55.8]} 11. Qf3
{[%clk 0:02:31.3]} 11... Rb8 {[%clk 0:02:48.9]} 12. Bxf6 {[%clk 0:02:24.5]}
12... Qxf6 {[%clk 0:02:46.7]} 13. Qxf6 {[%clk 0:02:25.1]} 13... gxf6 {[%clk
0:02:47.6]} 14. Ne2 {[%clk 0:02:20.3]} 14... Bd6 {[%clk 0:02:31]} 15. b3 {[%clk
0:02:18.7]} 15... c5 {[%clk 0:02:25.8]} 16. c4 {[%clk 0:02:07.8]} 16... d4
{[%clk 0:02:22.3]} 17. Rfe1 {[%clk 0:02:02.9]} 17... Re8 {[%clk 0:02:13.2]} 18.
Ng3 {[%clk 0:01:58]} 18... Bb7 {[%clk 0:01:59]} 19. Nh5 {[%clk 0:01:52.2]} 19...
Re5 {[%clk 0:01:29.9]} 20. Nxf6+ {[%clk 0:01:49.4]} 20... Kg7 {[%clk 0:01:27.7]}
21. Rxe5 {[%clk 0:01:38.6]} 21... Kxf6 {[%clk 0:01:19.8]} 22. Re2 {[%clk
0:01:37]} 22... Rg8 {[%clk 0:01:14.5]} 23. g3 {[%clk 0:01:35.7]} 23... Bf3
{[%clk 0:01:09.8]} 24. Ree1 {[%clk 0:01:35.2]} 24... h5 {[%clk 0:01:09.5]} 25.
Be4 {[%clk 0:01:34.9]} 25... Bg4 {[%clk 0:01:09.7]} 26. f3 {[%clk 0:01:33]}
26... Be6 {[%clk 0:01:06.3]} 27. Kf2 {[%clk 0:01:33.6]} 27... h4 {[%clk
0:01:04.3]} 28. Rg1 {[%clk 0:01:29.8]} 28... a5 {[%clk 0:01:00.5]} 29. gxh4
{[%clk 0:01:24.7]} 29... Rh8 {[%clk 0:00:59.6]} 30. Rg2 {[%clk 0:01:18.1]} 30...
Rxh4 {[%clk 0:00:57.2]} 31. Rag1 {[%clk 0:01:15.1]} 31... Bf4 {[%clk 0:00:53.9]}
32. Ke2 {[%clk 0:01:13.5]} 32... Rh8 {[%clk 0:00:40.3]} 33. Kd3 {[%clk
0:01:09.1]} 33... a4 {[%clk 0:00:28.2]} 34. Rh1 {[%clk 0:01:05.6]} 34... axb3
{[%clk 0:00:27.7]} 35. axb3 {[%clk 0:01:04.7]} 35... Rb8 {[%clk 0:00:27.2]} 36.
Kc2 {[%clk 0:01:02.6]} 36... Bh3 {[%clk 0:00:22.1]} 37. Re2 {[%clk 0:01:00.8]}
37... Rb6 {[%clk 0:00:21.9]} 38. Ra1 {[%clk 0:00:58]} 38... Be6 {[%clk
0:00:20.3]} 39. Ra7 {[%clk 0:00:56.9]} 39... Rb8 {[%clk 0:00:19.1]} 40. Ra5
{[%clk 0:00:56.5]} 40... Bd6 {[%clk 0:00:15.6]} 41. Ra6 {[%clk 0:00:56.6]} 41...
Rd8 {[%clk 0:00:15.9]} 42. Bd5 {[%clk 0:00:52.8]} 42... Bf5+ {[%clk 0:00:14.9]}
43. Kd2 {[%clk 0:00:53.3]} 43... Kg7 {[%clk 0:00:13.2]} 44. Be4 {[%clk
0:00:52.7]} 44... Bf4+ {[%clk 0:00:13.3]} 45. Kd3 {[%clk 0:00:51.8]} 45... Be6
{[%clk 0:00:12.2]} 46. Rg2+ {[%clk 0:00:50.4]} 46... Kf8 {[%clk 0:00:11.6]} 47.
h4 {[%clk 0:00:50]} 47... Rb8 {[%clk 0:00:11.7]} 48. Kc2 {[%clk 0:00:49]} 48...
Ke7 {[%clk 0:00:10.4]} 49. Ra7+ {[%clk 0:00:48]} 49... Kd6 {[%clk 0:00:10.4]}
50. Rg1 {[%clk 0:00:42.8]} 50... Rh8 {[%clk 0:00:10]} 51. Rh1 {[%clk 0:00:43]}
51... Rh5 {[%clk 0:00:09.5]} 52. Ra6+ {[%clk 0:00:41.5]} 52... Ke7 {[%clk
0:00:09.3]} 53. Rc6 {[%clk 0:00:39.8]} 53... Bg3 {[%clk 0:00:09.1]} 54. Kd3
{[%clk 0:00:35.4]} 54... Kd7 {[%clk 0:00:06.2]} 55. Rb6 {[%clk 0:00:32.9]} 55...
Ke7 {[%clk 0:00:05.8]} 56. Ra1 {[%clk 0:00:31.6]} 56... Rxh4 {[%clk 0:00:05.2]}
57. Ra7+ {[%clk 0:00:31.4]} 57... Kf8 {[%clk 0:00:05]} 58. Rbb7 {[%clk
0:00:30.5]} 58... Rh1 {[%clk 0:00:04.5]} 59. Bd5 {[%clk 0:00:28.8]} 59... Bxd5
{[%clk 0:00:04.6]} 60. cxd5 {[%clk 0:00:28.5]} 60... Rd1+ {[%clk 0:00:04.2]} 61.
Kc4 {[%clk 0:00:27]} 61... Rc1+ {[%clk 0:00:04.4]} 62. Kb5 {[%clk 0:00:27.2]}
62... d3 {[%clk 0:00:04.9]} 63. Rxf7+ {[%clk 0:00:25.9]} 63... Ke8 {[%clk
0:00:05.5]} 64. Rg7 {[%clk 0:00:24.8]} 64... Bd6 {[%clk 0:00:04.7]} 65. Rg8+
{[%clk 0:00:23.6]} 65... Bf8 {[%clk 0:00:04.5]} 66. Ra8+ {[%clk 0:00:22.3]}
66... Ke7 {[%clk 0:00:03.5]} 67. Rgxf8 {[%clk 0:00:22.9]} 67... d2 {[%clk
0:00:03.5]} 68. Rfe8+ {[%clk 0:00:21.7]} 68... Kd7 {[%clk 0:00:04]} 69. Rad8+
{[%clk 0:00:21]} 69... Kc7 {[%clk 0:00:04.3]} 70. Rc8+ {[%clk 0:00:20.6]} 70...
Kd6 {[%clk 0:00:04.5]} 71. Rcd8+ {[%clk 0:00:20.3]} 71... Kc7 {[%clk 0:00:03.8]}
72. Rc8+ {[%clk 0:00:20.4]} 72... Kd7 {[%clk 0:00:04.1]} 73. Rcd8+ {[%clk
0:00:20.6]} 73... Kc7 {[%clk 0:00:04.4]} 1/2-1/2